[Event "Kurnosov Memorial Rapid 2019"]
[Site "Chelyabinsk"]
[Date "2019.09.07"]
[Round "5.8"]
[White "Yakovich, Yuri"]
[Black "Meister, Jakob"]
[Result "1-0"]
[ECO "E00"]
[WhiteElo "2518"]
[BlackElo "2410"]
[Annotator "ChessBase"]
[PlyCount "85"]
[EventDate "2019.09.06"]
[EventType "swiss"]
[EventCountry "RUS"]
[SourceTitle "playchess.com"]
[Source "ChessBase"]
[SourceQuality "1"]
[TimeControl "900+10"]

1. d4 {[%emt 0:00:00]} e6 {[%emt 0:00:00]} 2. c4 {[%emt 0:00:00]} Bb4+ {[%emt 0:00:00]} 3. Bd2 {[%emt 0:00:00]} Bxd2+ {[%emt 0:00:00]} 4. Qxd2 {[%emt 0:00:02]} Nf6 {[%emt 0:00:00]} 5. Nc3 {[%emt 0:00:03]} d5 {[%emt 0:00:00]} 6. e3 {[%emt 0:00:05]} O-O {[%emt 0:00:02]} 7. Nf3 {[%emt 0:00:07]} Qe7 {[%emt 0:00:02]} 8. Rc1 {[%emt 0:00:30]} Rd8 {[%emt 0:00:02]} 9. cxd5 {[%emt 0:00:02]} exd5 {[%emt 0:00:02]} 10. Bd3 {[%emt 0:00:02]} c6 {[%emt 0:01:14]} 11. O-O {[%emt 0:00:03]} Nbd7 {[%emt 0:00:07]} 12. a3 {[%emt 0:00:14]} a5 {[%emt 0:00:04]} 13. h3 {[%emt 0:00:53]} Ne4 {[%emt 0:01:19]} 14. Qc2 {[%emt 0:00:02]} f5 {[%emt 0:00:03]} 15. Na4 {[%emt 0:01:38]} Rf8 {[%emt 0:01:57]} 16. Nd2 {[%emt 0:01:32]} Qg5 {[%emt 0:01:01]} 17. f4 {[%emt 0:00:22]} Qd8 {[%emt 0:00:24]} 18. Nf3 {[%emt 0:00:10]} Kh8 {[%emt 0:02:00]} 19. Kh2 {[%emt 0:00:18]} Ndf6 {[%emt 0:00:42]} 20. Ne5 {[%emt 0:00:11]} Nh5 {[%emt 0:00:22]} 21. Qd1 {[%emt 0:01:49]} g6 {[%emt 0:01:36]} 22. Qe1 {[%emt 0:00:30]} Be6 {[%emt 0:01:07]} 23. Nc5 {[%emt 0:00:08]} Qe7 {[%emt 0:01:07]} 24. Rg1 {[%emt 0:01:12]} Nxc5 {[%emt 0:03:15]} 25. Rxc5 {[%emt 0:00:28]} a4 {[%emt 0:00:03]} 26. g4 {[%emt 0:01:02]} Ng7 {[%emt 0:00:21]} 27. Rc2 {[%emt 0:00:37]} Kg8 {[%emt 0:00:54]} 28. g5 {[%emt 0:02:55]} Bf7 {[%emt 0:00:15]} 29. h4 {[%emt 0:00:02]} Be8 {[%emt 0:00:18]} 30. Be2 {[%emt 0:00:22]} Ne6 {[%emt 0:00:13]} 31. h5 {[%emt 0:01:05]} c5 {[%emt 0:00:48]} 32. dxc5 {[%emt 0:00:14]} Rc8 {[%emt 0:00:19]} 33. Bf3 {[%emt 0:01:00]} d4 {[%emt 0:00:38]} 34. Bd5 {[%emt 0:00:23]} Rd8 {[%emt 0:00:00]} 35. Bc4 {[%emt 0:00:30]} Kh8 {[%emt 0:00:03]} 36. hxg6 {[%emt 0:00:10]} Bxg6 {[%emt 0:00:02]} 37. Nxg6+ {[%emt 0:00:53]} hxg6 38. Qh4+ Kg8 {[%emt 0:00:09]} 39. Qh6 {[%emt 0:00:06]} Qf7 {[%emt 0:00:19]} 40. Kg3 {[%emt 0:00:07]} Rfe8 {[%emt 0:00:01]} 41. Rh1 {[%emt 0:00:20]} Qg7 {[%emt 0:00:01]} 42. Rch2 {[%emt 0:00:16]} Qxh6 {[%emt 0:00:38]} 43. Rxh6 {[%emt 0:00:01]} 1-0

[Event "Kurnosov Memorial Rapid 2019"]
[Site "Chelyabinsk"]
[Date "2019.09.07"]
[Round "5.10"]
[White "Stupak, Kirill"]
[Black "Lobanov, Sergei"]
[Result "0-1"]
[ECO "D78"]
[WhiteElo "2551"]
[BlackElo "2515"]
[Annotator "ChessBase"]
[PlyCount "70"]
[EventDate "2019.09.06"]
[EventType "swiss"]
[EventCountry "RUS"]
[SourceTitle "playchess.com"]
[Source "ChessBase"]
[SourceQuality "1"]
[TimeControl "900+10"]

1. d4 {[%emt 0:00:00]} Nf6 {[%emt 0:00:00]} 2. g3 {[%emt 0:00:00]} d5 {[%emt 0:00:00]} 3. Nf3 {[%emt 0:00:00]} g6 4. Bg2 {[%emt 0:00:00]} Bg7 {[%emt 0:00:37]} 5. O-O {[%emt 0:00:03]} O-O {[%emt 0:00:03]} 6. c4 {[%emt 0:00:01]} c6 {[%emt 0:00:05]} 7. b3 {[%emt 0:00:06]} Bf5 {[%emt 0:00:39]} 8. Bb2 {[%emt 0:00:03]} a5 {[%emt 0:00:16]} 9. Nbd2 {[%emt 0:00:46]} a4 {[%emt 0:00:33]} 10. e3 {[%emt 0:00:52]} Nbd7 {[%emt 0:00:39]} 11. Nh4 {[%emt 0:01:07]} Bd3 {[%emt 0:01:35]} 12. Re1 {[%emt 0:00:04]} Qb6 {[%emt 0:00:37]} 13. Qc1 {[%emt 0:03:30]} Qa5 {[%emt 0:00:40]} 14. Nhf3 {[%emt 0:02:50]} b5 {[%emt 0:00:57]} 15. b4 {[%emt 0:02:35]} Qxb4 {[%emt 0:02:43]} 16. Ba3 {[%emt 0:00:02]} Qa5 {[%emt 0:00:01]} 17. Bxe7 {[%emt 0:00:02]} Rfe8 {[%emt 0:02:55]} 18. Bxf6 {[%emt 0:00:02]} Nxf6 {[%emt 0:00:29]} 19. c5 {[%emt 0:00:24]} Ne4 {[%emt 0:00:14]} 20. Nxe4 {[%emt 0:01:14]} Bxe4 {[%emt 0:00:07]} 21. Nd2 {[%emt 0:00:07]} Bf5 {[%emt 0:00:07]} 22. h3 {[%emt 0:00:15]} b4 {[%emt 0:00:12]} 23. Bf1 {[%emt 0:00:22]} h5 {[%emt 0:00:55]} 24. Nf3 Reb8 {[%emt 0:00:52]} 25. Nd2 {[%emt 0:01:13]} Ra7 {[%emt 0:00:41]} 26. Kh2 {[%emt 0:00:20]} Qc7 {[%emt 0:00:12]} 27. Qb2 {[%emt 0:00:17]} h4 {[%emt 0:00:05]} 28. Kg2 {[%emt 0:00:16]} hxg3 {[%emt 0:00:02]} 29. fxg3 {[%emt 0:00:01]} Qe7 {[%emt 0:00:07]} 30. Rac1 {[%emt 0:01:34]} Qg5 {[%emt 0:00:16]} 31. g4 {[%emt 0:00:51]} Re7 {[%emt 0:00:27]} 32. Kf2 {[%emt 0:00:43]} Qh4+ {[%emt 0:01:10]} 33. Kg1 {[%emt 0:00:10]} Qg3+ {[%emt 0:00:10]} 34. Bg2 {[%emt 0:00:01]} Rxe3 {[%emt 0:00:11]} 35. Nf1 {[%emt 0:00:15]} Rxe1 {[%emt 0:00:04]} 0-1

[Event "Kurnosov Memorial Rapid 2019"]
[Site "Chelyabinsk"]
[Date "2019.09.07"]
[Round "6.2"]
[White "Romanov, Evgeny"]
[Black "Mirzoev, Azer"]
[Result "1/2-1/2"]
[ECO "D03"]
[WhiteElo "2579"]
[BlackElo "2502"]
[Annotator "ChessBase"]
[PlyCount "43"]
[EventDate "2019.09.06"]
[EventType "swiss"]
[EventCountry "RUS"]
[SourceTitle "playchess.com"]
[Source "ChessBase"]
[SourceQuality "1"]
[TimeControl "900+10"]

1. d4 {[%emt 0:00:00]} d5 {[%emt 0:00:00]} 2. Nf3 {[%emt 0:00:00]} Nf6 {[%emt 0:00:00]} 3. Bg5 {[%emt 0:00:00]} e6 {[%emt 0:00:09]} 4. e3 {[%emt 0:00:00]} h6 {[%emt 0:00:04]} 5. Bh4 {[%emt 0:00:01]} Be7 {[%emt 0:00:06]} 6. Bd3 {[%emt 0:00:03]} O-O {[%emt 0:00:26]} 7. Nbd2 {[%emt 0:00:02]} c5 {[%emt 0:00:03]} 8. c3 {[%emt 0:00:02]} b6 {[%emt 0:00:01]} 9. O-O {[%emt 0:00:19]} Ba6 {[%emt 0:00:01]} 10. Bxa6 {[%emt 0:00:17]} Nxa6 {[%emt 0:00:02]} 11. Ne5 {[%emt 0:00:04]} Nb8 {[%emt 0:00:05]} 12. f4 {[%emt 0:00:19]} Nfd7 {[%emt 0:00:15]} 13. Bxe7 {[%emt 0:00:59]} Qxe7 {[%emt 0:00:02]} 14. Ndf3 {[%emt 0:00:24]} Nxe5 {[%emt 0:00:31]} 15. Nxe5 {[%emt 0:01:09]} Nd7 {[%emt 0:00:10]} 16. Qa4 {[%emt 0:00:02]} Nf6 {[%emt 0:01:50]} 17. f5 {[%emt 0:00:05]} Ne4 {[%emt 0:00:43]} 18. Rf4 {[%emt 0:00:37]} exf5 {[%emt 0:00:27]} 19. Rxf5 {[%emt 0:00:07]} Qe6 {[%emt 0:00:11]} 20. Raf1 {[%emt 0:00:12]} Nd6 {[%emt 0:04:23]} 21. R5f3 {[%emt 0:00:02]} Nc4 {[%emt 0:01:46]} 22. Nxc4 {[%emt 0:05:26]} 1/2-1/2

[Event "Kurnosov Memorial Rapid 2019"]
[Site "Chelyabinsk"]
[Date "2019.09.07"]
[Round "6.7"]
[White "Galliamova, Alisa"]
[Black "Yudin, Sergei"]
[Result "0-1"]
[ECO "D02"]
[WhiteElo "2388"]
[BlackElo "2494"]
[Annotator "ChessBase"]
[PlyCount "88"]
[EventDate "2019.09.06"]
[EventType "swiss"]
[EventCountry "RUS"]
[SourceTitle "playchess.com"]
[Source "ChessBase"]
[SourceQuality "1"]
[TimeControl "900+10"]

1. d4 {[%emt 0:00:00]} d5 {[%emt 0:02:31]} 2. Nf3 {[%emt 0:00:00]} c6 {[%emt 0:00:01]} 3. e3 {[%emt 0:00:31]} Bf5 {[%emt 0:00:13]} 4. Bd3 {[%emt 0:00:05]} Bg6 {[%emt 0:00:15]} 5. O-O {[%emt 0:00:06]} Nf6 {[%emt 0:00:05]} 6. b3 {[%emt 0:01:39]} e6 {[%emt 0:00:06]} 7. Ne5 {[%emt 0:00:32]} Nbd7 {[%emt 0:00:08]} 8. Nxg6 {[%emt 0:01:50]} hxg6 {[%emt 0:00:03]} 9. Nd2 {[%emt 0:00:03]} e5 {[%emt 0:00:24]} 10. dxe5 {[%emt 0:03:25]} Nxe5 {[%emt 0:00:15]} 11. Be2 {[%emt 0:00:02]} Bd6 {[%emt 0:00:04]} 12. h3 {[%emt 0:00:49]} Qe7 {[%emt 0:00:04]} 13. Bb2 {[%emt 0:00:07]} O-O-O {[%emt 0:00:03]} 14. Nf3 {[%emt 0:00:07]} Ne4 {[%emt 0:01:06]} 15. Nxe5 {[%emt 0:00:27]} Bxe5 {[%emt 0:00:03]} 16. Bxe5 {[%emt 0:00:03]} Qxe5 {[%emt 0:00:02]} 17. Qd4 {[%emt 0:00:01]} Qxd4 {[%emt 0:00:58]} 18. exd4 {[%emt 0:00:01]} Rde8 {[%emt 0:00:04]} 19. Bd3 {[%emt 0:00:04]} Kc7 {[%emt 0:00:11]} 20. f3 {[%emt 0:00:19]} Nd6 {[%emt 0:00:07]} 21. Rfe1 {[%emt 0:00:07]} g5 {[%emt 0:00:21]} 22. Kf2 {[%emt 0:00:02]} b6 {[%emt 0:00:05]} 23. Rxe8 {[%emt 0:00:46]} Rxe8 {[%emt 0:00:03]} 24. Rh1 {[%emt 0:00:07]} c5 {[%emt 0:00:30]} 25. dxc5 {[%emt 0:00:08]} bxc5 {[%emt 0:00:02]} 26. h4 {[%emt 0:00:12]} Rh8 {[%emt 0:00:04]} 27. h5 {[%emt 0:00:48]} Kc6 {[%emt 0:00:35]} 28. g4 {[%emt 0:00:07]} a5 {[%emt 0:00:13]} 29. Re1 {[%emt 0:00:13]} Re8 {[%emt 0:00:09]} 30. Rxe8 {[%emt 0:00:15]} Nxe8 {[%emt 0:00:01]} 31. f4 {[%emt 0:00:10]} f6 {[%emt 0:00:08]} 32. Ke3 {[%emt 0:00:47]} Nd6 {[%emt 0:00:09]} 33. c3 {[%emt 0:01:01]} c4 {[%emt 0:00:27]} 34. Be2 {[%emt 0:00:25]} Kc5 {[%emt 0:00:25]} 35. fxg5 {[%emt 0:00:34]} fxg5 {[%emt 0:00:06]} 36. Bf3 {[%emt 0:00:03]} Nb5 {[%emt 0:00:30]} 37. b4+ {[%emt 0:02:44]} Kd6 {[%emt 0:02:20]} 38. bxa5 {[%emt 0:01:38]} Nxc3 {[%emt 0:00:07]} 39. a4 {[%emt 0:00:25]} Kc5 {[%emt 0:01:12]} 40. a6 {[%emt 0:00:28]} d4+ {[%emt 0:00:34]} 41. Kd2 {[%emt 0:00:16]} Kb6 {[%emt 0:00:02]} 42. Bg2 {[%emt 0:00:12]} Nxa4 {[%emt 0:01:20]} 43. Bf1 {[%emt 0:00:09]} c3+ {[%emt 0:00:11]} 44. Kc2 {[%emt 0:00:11]} Nc5 {[%emt 0:00:02]} 0-1

[Event "Kurnosov Memorial Rapid 2019"]
[Site "Chelyabinsk"]
[Date "2019.09.07"]
[Round "6.8"]
[White "Pridorozhni, Aleksei"]
[Black "Urazayev, Arystanbek"]
[Result "1/2-1/2"]
[ECO "C77"]
[WhiteElo "2599"]
[BlackElo "2442"]
[Annotator "ChessBase"]
[PlyCount "98"]
[EventDate "2019.09.06"]
[EventType "swiss"]
[EventCountry "RUS"]
[SourceTitle "playchess.com"]
[Source "ChessBase"]
[SourceQuality "1"]
[TimeControl "900+10"]

1. e4 {[%emt 0:00:00]} e5 {[%emt 0:00:00]} 2. Nf3 {[%emt 0:00:00]} Nc6 {[%emt 0:00:00]} 3. Bb5 {[%emt 0:00:00]} a6 {[%emt 0:00:00]} 4. Ba4 {[%emt 0:00:01]} Nf6 {[%emt 0:00:00]} 5. Bxc6 {[%emt 0:00:31]} dxc6 {[%emt 0:00:00]} 6. d3 {[%emt 0:00:01]} Bd6 {[%emt 0:00:07]} 7. Nbd2 {[%emt 0:00:06]} O-O {[%emt 0:00:13]} 8. b3 {[%emt 0:00:03]} c5 {[%emt 0:00:13]} 9. Bb2 {[%emt 0:00:04]} Re8 {[%emt 0:00:02]} 10. Nc4 {[%emt 0:00:11]} Nd7 {[%emt 0:00:04]} 11. a4 {[%emt 0:00:06]} b6 {[%emt 0:00:03]} 12. O-O {[%emt 0:00:31]} f6 {[%emt 0:00:04]} 13. Nh4 {[%emt 0:00:32]} Nf8 {[%emt 0:00:05]} 14. Nf5 {[%emt 0:00:03]} Ne6 {[%emt 0:00:54]} 15. g3 {[%emt 0:00:20]} Bf8 {[%emt 0:00:37]} 16. f4 {[%emt 0:00:29]} exf4 {[%emt 0:00:29]} 17. gxf4 {[%emt 0:00:02]} Nd4 {[%emt 0:00:12]} 18. Nxd4 {[%emt 0:00:12]} cxd4 {[%emt 0:00:04]} 19. f5 {[%emt 0:00:04]} Bb7 {[%emt 0:01:59]} 20. Qh5 {[%emt 0:00:50]} Qd7 {[%emt 0:05:30]} 21. Rf3 {[%emt 0:00:43]} Rad8 {[%emt 0:02:09]} 22. Rh3 {[%emt 0:00:05]} h6 {[%emt 0:00:03]} 23. Rg3 {[%emt 0:00:02]} Kh8 {[%emt 0:01:04]} 24. Nd2 {[%emt 0:02:18]} Re7 {[%emt 0:00:49]} 25. Nf3 {[%emt 0:00:11]} Qe8 {[%emt 0:00:29]} 26. Qh3 {[%emt 0:00:26]} Bxe4 {[%emt 0:00:35]} 27. dxe4 {[%emt 0:00:03]} Rxe4 {[%emt 0:00:06]} 28. Nh4 {[%emt 0:03:01]} d3 {[%emt 0:00:10]} 29. Ng6+ {[%emt 0:00:17]} Kg8 {[%emt 0:00:02]} 30. cxd3 {[%emt 0:00:42]} Bc5+ {[%emt 0:00:02]} 31. d4 {[%emt 0:00:39]} Rdxd4 {[%emt 0:00:03]} 32. Bxd4 {[%emt 0:02:26]} Bxd4+ {[%emt 0:00:02]} 33. Kf1 {[%emt 0:00:01]} Bxa1 {[%emt 0:00:08]} 34. Qh5 {[%emt 0:00:02]} Re1+ {[%emt 0:00:52]} 35. Kg2 {[%emt 0:00:01]} Bd4 {[%emt 0:00:39]} 36. Kh3 {[%emt 0:01:12]} Re3 {[%emt 0:00:34]} 37. Qg4 {[%emt 0:00:06]} Rxg3+ {[%emt 0:00:52]} 38. hxg3 {[%emt 0:00:02]} c5 {[%emt 0:00:32]} 39. Qf3 {[%emt 0:00:05]} Kh7 {[%emt 0:00:40]} 40. Nf4 {[%emt 0:00:34]} Qe1 {[%emt 0:00:23]} 41. Ne6 {[%emt 0:00:19]} Be5 {[%emt 0:00:21]} 42. Nf8+ {[%emt 0:00:04]} Kg8 {[%emt 0:00:04]} 43. Ne6 {[%emt 0:00:03]} Kh7 {[%emt 0:00:25]} 44. Nf8+ {[%emt 0:00:04]} Kg8 {[%emt 0:00:02]} 45. Ng6 {[%emt 0:00:03]} Kh7 {[%emt 0:00:11]} 46. Nf8+ {[%emt 0:00:11]} Kg8 {[%emt 0:00:02]} 47. Ng6 {[%emt 0:00:17]} Kh7 {[%emt 0:00:06]} 48. Nf8+ {[%emt 0:00:02]} Kg8 {[%emt 0:00:01]} 49. Ng6 {[%emt 0:00:01]} Kh7 {[%emt 0:00:01]} 1/2-1/2

[Event "Kurnosov Memorial Rapid 2019"]
[Site "Chelyabinsk"]
[Date "2019.09.07"]
[Round "6.9"]
[White "Kotsur, Pavel"]
[Black "Shcherbin, Matvei"]
[Result "1-0"]
[ECO "B40"]
[WhiteElo "2528"]
[BlackElo "2324"]
[Annotator "ChessBase"]
[PlyCount "53"]
[EventDate "2019.09.06"]
[EventType "swiss"]
[EventCountry "RUS"]
[SourceTitle "playchess.com"]
[Source "ChessBase"]
[SourceQuality "1"]
[TimeControl "900+10"]

1. e4 {[%emt 0:00:00]} c5 {[%emt 0:00:00]} 2. Nf3 {[%emt 0:00:00]} e6 {[%emt 0:00:00]} 3. d4 {[%emt 0:00:04]} cxd4 {[%emt 0:00:02]} 4. Nxd4 {[%emt 0:00:02]} Bc5 {[%emt 0:00:04]} 5. Nb3 {[%emt 0:01:45]} Bb6 {[%emt 0:00:05]} 6. Bd3 {[%emt 0:00:02]} Ne7 {[%emt 0:00:05]} 7. O-O {[%emt 0:00:08]} O-O {[%emt 0:00:05]} 8. N1d2 {[%emt 0:00:15]} Nbc6 {[%emt 0:00:53]} 9. Nc4 {[%emt 0:01:39]} Bc7 {[%emt 0:00:31]} 10. Ne3 {[%emt 0:00:02]} Ne5 {[%emt 0:02:49]} 11. Be2 {[%emt 0:00:09]} f5 {[%emt 0:00:02]} 12. f4 {[%emt 0:01:50]} N5g6 {[%emt 0:01:42]} 13. e5 {[%emt 0:00:05]} d6 {[%emt 0:01:00]} 14. exd6 {[%emt 0:00:05]} Bxd6 {[%emt 0:00:05]} 15. g3 {[%emt 0:00:30]} e5 {[%emt 0:01:36]} 16. Nc4 {[%emt 0:00:21]} Bc7 {[%emt 0:00:07]} 17. Qxd8 {[%emt 0:00:24]} Rxd8 {[%emt 0:00:02]} 18. fxe5 {[%emt 0:00:16]} Nxe5 {[%emt 0:02:31]} 19. Nxe5 {[%emt 0:00:33]} Bxe5 {[%emt 0:00:01]} 20. Bc4+ {[%emt 0:00:31]} Kf8 {[%emt 0:01:09]} 21. c3 {[%emt 0:00:13]} b6 {[%emt 0:01:13]} 22. Bg5 {[%emt 0:00:20]} h6 {[%emt 0:00:14]} 23. Be3 {[%emt 0:01:40]} Nd5 {[%emt 0:02:22]} 24. Bf2 {[%emt 0:00:55]} Nc7 {[%emt 0:01:45]} 25. Rae1 {[%emt 0:00:21]} Bf6 {[%emt 0:00:03]} 26. Bd4 {[%emt 0:00:14]} Be7 {[%emt 0:00:42]} 27. Bxg7+ {[%emt 0:00:09] Bf6} 1-0

[Event "Kurnosov Memorial Rapid 2019"]
[Site "Chelyabinsk"]
[Date "2019.09.07"]
[Round "6.10"]
[White "Sivuk, Vitaly"]
[Black "Tsvetkov, Andrey"]
[Result "1/2-1/2"]
[ECO "D31"]
[WhiteElo "2559"]
[BlackElo "2373"]
[Annotator "ChessBase"]
[PlyCount "57"]
[EventDate "2019.09.06"]
[EventType "swiss"]
[EventCountry "RUS"]
[SourceTitle "playchess.com"]
[Source "ChessBase"]
[SourceQuality "1"]
[TimeControl "900+10"]

1. d4 {[%emt 0:00:00]} d5 {[%emt 0:00:00]} 2. c4 {[%emt 0:00:00]} e6 {[%emt 0:00:00]} 3. Nc3 {[%emt 0:00:00]} c6 {[%emt 0:00:00]} 4. e4 {[%emt 0:00:03]} dxe4 {[%emt 0:00:00]} 5. Nxe4 {[%emt 0:00:02]} Bb4+ {[%emt 0:00:00]} 6. Bd2 {[%emt 0:00:02]} Qxd4 {[%emt 0:00:00]} 7. Bxb4 {[%emt 0:00:03]} Qxe4+ {[%emt 0:00:00]} 8. Ne2 {[%emt 0:00:02]} Na6 {[%emt 0:00:02]} 9. Bf8 {[%emt 0:00:02]} Qe5 {[%emt 0:00:08]} 10. Qd2 {[%emt 0:00:36]} Bd7 {[%emt 0:02:06]} 11. Bd6 {[%emt 0:01:25]} Qe4 {[%emt 0:02:11]} 12. f3 {[%emt 0:04:47]} Qh4+ {[%emt 0:02:13]} 13. g3 {[%emt 0:00:03]} Qf6 {[%emt 0:00:20]} 14. f4 {[%emt 0:00:31]} Ne7 {[%emt 0:01:54]} 15. Nc3 {[%emt 0:02:08]} c5 {[%emt 0:03:08]} 16. Ne4 {[%emt 0:03:07]} Qd4 {[%emt 0:00:14]} 17. Nxc5 {[%emt 0:02:10]} Qxd2+ {[%emt 0:00:26]} 18. Kxd2 {[%emt 0:00:02]} Bc6 {[%emt 0:00:07]} 19. Nxa6 {[%emt 0:00:20]} O-O-O {[%emt 0:00:01]} 20. c5 {[%emt 0:00:32]} Bxh1 {[%emt 0:00:23]} 21. Bd3 {[%emt 0:00:09]} Nf5 {[%emt 0:01:31]} 22. Bxf5 {[%emt 0:00:38]} exf5 {[%emt 0:00:16]} 23. Rxh1 {[%emt 0:00:26]} bxa6 {[%emt 0:00:00]} 24. Rc1 {[%emt 0:00:05]} Kb7 {[%emt 0:00:16]} 25. Rc3 {[%emt 0:00:09]} Rhe8 {[%emt 0:00:29]} 26. Rb3+ {[%emt 0:00:06]} Kc6 {[%emt 0:00:10]} 27. Ra3 {[%emt 0:00:02]} Kb7 {[%emt 0:01:02]} 28. Rb3+ {[%emt 0:00:02]} Kc6 {[%emt 0:00:01]} 29. Ra3 {[%emt 0:00:01]} 1/2-1/2

[Event "Kurnosov Memorial Rapid 2019"]
[Site "Chelyabinsk"]
[Date "2019.09.07"]
[Round "8.6"]
[White "Volkov, Sergey"]
[Black "Shariyazdanov, Andrey"]
[Result "1-0"]
[ECO "B06"]
[WhiteElo "2557"]
[BlackElo "2477"]
[Annotator "ChessBase"]
[PlyCount "79"]
[EventDate "2019.09.06"]
[EventType "swiss"]
[EventCountry "RUS"]
[SourceTitle "playchess.com"]
[Source "ChessBase"]
[SourceQuality "1"]
[TimeControl "900+10"]

1. d4 {[%emt 0:00:00]} g6 {[%emt 0:00:00]} 2. e4 {[%emt 0:00:00]} Bg7 {[%emt 0:00:00]} 3. c4 {[%emt 0:00:00]} d6 {[%emt 0:00:00]} 4. Nc3 {[%emt 0:00:01]} e5 {[%emt 0:00:00]} 5. d5 {[%emt 0:00:01]} a5 {[%emt 0:00:01]} 6. Bd3 {[%emt 0:00:09]} Nd7 {[%emt 0:00:08]} 7. h4 {[%emt 0:00:12]} Ngf6 {[%emt 0:00:13]} 8. Bc2 {[%emt 0:00:19]} Nc5 {[%emt 0:00:04]} 9. Be3 {[%emt 0:00:32]} Bd7 {[%emt 0:03:38]} 10. Qe2 {[%emt 0:01:18]} O-O {[%emt 0:00:35]} 11. O-O-O {[%emt 0:00:25]} a4 {[%emt 0:00:37]} 12. Kb1 {[%emt 0:00:03]} Qb8 {[%emt 0:01:46]} 13. h5 {[%emt 0:00:54]} Nxh5 {[%emt 0:00:05]} 14. Rxh5 {[%emt 0:00:02]} gxh5 {[%emt 0:00:01]} 15. Qxh5 {[%emt 0:00:03]} b5 {[%emt 0:01:20]} 16. cxb5 {[%emt 0:00:18]} Qe8 {[%emt 0:02:14]} 17. Nf3 {[%emt 0:00:26]} f5 {[%emt 0:00:05]} 18. Qh2 {[%emt 0:00:33]} f4 {[%emt 0:00:26]} 19. Bxc5 {[%emt 0:00:10]} dxc5 {[%emt 0:00:00]} 20. Bxa4 {[%emt 0:00:14]} Rf6 {[%emt 0:00:33]} 21. Bb3 {[%emt 0:00:12]} Rh6 {[%emt 0:00:25]} 22. Qg1 {[%emt 0:00:02]} Bxb5 {[%emt 0:00:13]} 23. Nxb5 {[%emt 0:02:05]} Qxb5 {[%emt 0:00:01]} 24. d6+ {[%emt 0:00:02]} c4 {[%emt 0:00:04]} 25. Qf1 {[%emt 0:00:06]} Kf8 {[%emt 0:00:51]} 26. Bxc4 {[%emt 0:00:10]} Qc5 {[%emt 0:00:22]} 27. Rd5 {[%emt 0:00:11]} Qb6 {[%emt 0:00:15]} 28. d7 {[%emt 0:02:59]} Rd8 {[%emt 0:00:24]} 29. a4 {[%emt 0:00:25]} Rd6 {[%emt 0:01:02]} 30. a5 {[%emt 0:00:02]} Qa7 {[%emt 0:00:17]} 31. Rxd6 cxd6 {[%emt 0:00:01]} 32. a6 {[%emt 0:01:44]} Rxd7 {[%emt 0:00:12]} 33. Qd3 {[%emt 0:00:31]} Ke7 {[%emt 0:02:00]} 34. Qd5 {[%emt 0:00:31]} Kd8 {[%emt 0:00:04]} 35. Bb5 {[%emt 0:00:13]} Re7 {[%emt 0:00:57]} 36. Qxd6+ {[%emt 0:00:13]} Kc8 {[%emt 0:00:01]} 37. Nh4 {[%emt 0:01:05]} Qxf2 {[%emt 0:01:45]} 38. Qxe7 Qe1+ {[%emt 0:00:27]} 39. Kc2 {[%emt 0:01:16]} Qf2+ {[%emt 0:00:06]} 40. Kb3 {[%emt 0:00:21]} 1-0

[Event "Kurnosov Memorial Rapid 2019"]
[Site "Chelyabinsk"]
[Date "2019.09.07"]
[Round "9.8"]
[White "Harutjunyan, Gevorg"]
[Black "Kotsur, Pavel"]
[Result "1-0"]
[ECO "B43"]
[WhiteElo "2455"]
[BlackElo "2528"]
[Annotator "ChessBase"]
[PlyCount "53"]
[EventDate "2019.09.06"]
[EventType "swiss"]
[EventCountry "RUS"]
[SourceTitle "playchess.com"]
[Source "ChessBase"]
[SourceQuality "1"]
[TimeControl "900+10"]

1. e4 {[%emt 0:00:00]} c5 {[%emt 0:00:00]} 2. Nf3 {[%emt 0:00:00]} e6 {[%emt 0:00:00]} 3. d4 {[%emt 0:00:00]} cxd4 {[%emt 0:00:00]} 4. Nxd4 {[%emt 0:00:00]} a6 {[%emt 0:00:00]} 5. Nc3 {[%emt 0:00:03]} Qc7 {[%emt 0:00:03]} 6. Qf3 {[%emt 0:00:24]} Nf6 {[%emt 0:03:34]} 7. Bg5 {[%emt 0:00:13]} Be7 {[%emt 0:00:25]} 8. O-O-O {[%emt 0:00:05]} d6 {[%emt 0:00:23]} 9. Be2 {[%emt 0:00:35]} Bd7 {[%emt 0:00:54]} 10. Qg3 {[%emt 0:03:54]} b5 {[%emt 0:01:37]} 11. Nf5 {[%emt 0:03:10]} exf5 {[%emt 0:01:26]} 12. Bxf6 {[%emt 0:00:02]} gxf6 {[%emt 0:03:26]} 13. Nd5 {[%emt 0:00:24]} Qd8 {[%emt 0:00:15]} 14. Qg7 {[%emt 0:02:06]} Rf8 {[%emt 0:00:05]} 15. exf5 {[%emt 0:00:46]} Bxf5 {[%emt 0:00:48]} 16. Bf3 {[%emt 0:02:47]} Ra7 {[%emt 0:00:24]} 17. Rhe1 {[%emt 0:00:08]} Be6 {[%emt 0:00:01]} 18. Qxh7 {[%emt 0:01:27]} Kd7 {[%emt 0:01:34]} 19. Nf4 {[%emt 0:00:16]} Kc8 {[%emt 0:01:27]} 20. Nxe6 {[%emt 0:00:22]} fxe6 {[%emt 0:00:02]} 21. Rxe6 {[%emt 0:00:04]} f5 {[%emt 0:00:05]} 22. Kb1 {[%emt 0:00:10]} Rc7 {[%emt 0:00:24]} 23. Rde1 {[%emt 0:00:24]} Bf6 {[%emt 0:00:47]} 24. Qh5 {[%emt 0:00:15]} Re7 {[%emt 0:00:13]} 25. Qxf5 {[%emt 0:00:15]} Rxe6 {[%emt 0:00:52]} 26. Rxe6 {[%emt 0:00:05]} Qd7 {[%emt 0:00:07]} 27. Rxf6 {[%emt 0:00:08]} 1-0

[Event "Kurnosov Memorial Rapid 2019"]
[Site "Chelyabinsk"]
[Date "2019.09.07"]
[Round "9.9"]
[White "Drygalov, Andrey"]
[Black "Bezgodov, Alexei"]
[Result "1/2-1/2"]
[ECO "C42"]
[WhiteElo "2499"]
[BlackElo "2459"]
[Annotator "ChessBase"]
[PlyCount "62"]
[EventDate "2019.09.06"]
[EventType "swiss"]
[EventCountry "RUS"]
[SourceTitle "playchess.com"]
[Source "ChessBase"]
[SourceQuality "1"]
[TimeControl "900+10"]

1. e4 {[%emt 0:00:00]} e5 {[%emt 0:00:00]} 2. Nf3 {[%emt 0:00:00]} Nf6 {[%emt 0:00:00]} 3. Nxe5 {[%emt 0:00:14]} d6 {[%emt 0:00:00]} 4. Nf3 {[%emt 0:00:02]} Nxe4 {[%emt 0:00:00]} 5. d4 {[%emt 0:00:01]} d5 {[%emt 0:00:17]} 6. Bd3 {[%emt 0:00:03]} Nc6 {[%emt 0:01:09]} 7. O-O {[%emt 0:01:07]} Be7 {[%emt 0:00:02]} 8. Nbd2 {[%emt 0:00:08]} Nxd2 {[%emt 0:00:34]} 9. Bxd2 {[%emt 0:00:01]} Bg4 {[%emt 0:00:05]} 10. c3 {[%emt 0:00:07]} O-O {[%emt 0:00:08]} 11. h3 {[%emt 0:01:10]} Bh5 {[%emt 0:00:07]} 12. Be2 {[%emt 0:00:43]} Re8 {[%emt 0:00:15]} 13. Ne1 {[%emt 0:00:44]} Bxe2 {[%emt 0:00:24]} 14. Qxe2 {[%emt 0:00:01]} Bg5 {[%emt 0:00:54]} 15. Qd1 {[%emt 0:00:01]} Bxd2 {[%emt 0:00:17]} 16. Qxd2 {[%emt 0:00:01]} Qe7 17. Nd3 {[%emt 0:00:44]} Qe2 {[%emt 0:00:31]} 18. Rad1 {[%emt 0:00:08]} Qxd2 {[%emt 0:00:07]} 19. Rxd2 {[%emt 0:00:01]} Rad8 {[%emt 0:00:19]} 20. f3 {[%emt 0:00:26]} f6 {[%emt 0:00:07]} 21. Kf2 {[%emt 0:00:02]} Kf7 {[%emt 0:00:00]} 22. h4 {[%emt 0:00:02]} Na5 {[%emt 0:00:26]} 23. b3 {[%emt 0:00:16]} Nc6 {[%emt 0:00:01]} 24. g4 {[%emt 0:00:14]} g6 {[%emt 0:01:03]} 25. Nf4 {[%emt 0:00:15]} Rd6 {[%emt 0:00:38]} 26. h5 {[%emt 0:01:41]} g5 {[%emt 0:00:40]} 27. Ne2 {[%emt 0:00:46]} f5 {[%emt 0:00:11]} 28. gxf5 {[%emt 0:02:06]} Rf6 {[%emt 0:00:51]} 29. Rg1 {[%emt 0:04:29]} h6 {[%emt 0:00:55]} 30. Rd3 {[%emt 0:00:03]} Ne7 {[%emt 0:00:43]} 31. Ng3 {[%emt 0:02:15]} Ra8 1/2-1/2